bitfinex-derivatives/quotes_BTCF0:USTF0_20250602
["timestamp","ask_amount","ask_price","bid_price","bid_amount"]
[1748887418630,0.5545728,104460.0,104450.0,1.04832]
[1748887419028,0.5543728,104460.0,104450.0,1.04832]
[1748887419229,0.5545728,104460.0,104450.0,1.04832]
[1748887421024,0.5545728,104460.0,104450.0,1.2397108]
[1748887421328,0.5545728,104460.0,104450.0,1.04832]
[1748887421530,0.5545728,104460.0,104450.0,1.2397108]
[1748887423331,0.5545728,104460.0,104450.0,1.04832]
[1748887425125,0.5545728,104460.0,104450.0,1.2708109]
[1748887425523,0.5545728,104460.0,104450.0,1.07942]
[1748887425729,0.5545728,104460.0,104450.0,0.71862]
[1748887426529,0.9153728,104460.0,104450.0,0.23936]
[1748887426733,0.9153728,104460.0,104450.0,0.68696]
[1748887427831,0.9153728,104460.0,104450.0,0.68684]
[1748887429634,0.93203179,104460.0,104450.0,0.46668]
[1748887429839,0.99203179,104460.0,104450.0,0.46668]
[1748887430239,0.99203179,104460.0,104450.0,0.01936]
[1748887430443,0.99203179,104460.0,104450.0,0.46684]
[1748887430940,1.19203179,104460.0,104450.0,0.46684]
[1748887431133,1.20173216,104460.0,104450.0,0.46684]
[1748887431333,1.19873216,104460.0,104450.0,0.46484]
[1748887431536,1.28207317,104460.0,104450.0,0.46484]
[1748887431735,1.49773216,104460.0,104450.0,0.46384]
[1748887431941,1.2813728,104460.0,104450.0,0.46384]
[1748887432445,1.48803179,104460.0,104450.0,0.01636]
[1748887432644,1.48803179,104460.0,104450.0,0.46376]
[1748887433544,0.9913728,104460.0,104450.0,0.46376]
[1748887433734,0.9411728,104460.0,104450.0,0.61526]
[1748887433934,0.9411728,104460.0,104450.0,0.64746]
[1748887434341,0.9413728,104460.0,104450.0,0.64746]
[1748887434543,0.9411728,104460.0,104450.0,0.64746]
[1748887434840,0.9413728,104460.0,104450.0,0.64746]
[1748887436038,0.5805728,104460.0,104450.0,0.64746]
[1748887439334,0.5805728,104460.0,104450.0,0.3914506]
[1748887439535,0.5385728,104460.0,104450.0,1.54562959]
[1748887439735,0.5383728,104460.0,104450.0,1.74562959]
[1748887439942,0.5385728,104460.0,104450.0,1.74562959]
[1748887440137,0.5383728,104460.0,104450.0,1.74562959]
[1748887440340,0.5085728,104460.0,104450.0,1.74562959]
[1748887440640,0.5025728,104460.0,104450.0,1.74862959]
[1748887441343,0.4945728,104460.0,104450.0,1.75762959]
[1748887441737,0.4943728,104460.0,104450.0,1.75762959]
[1748887442035,0.3032,104460.0,104450.0,1.75762959]
[1748887442240,0.4943723,104460.0,104450.0,1.75762959]
[1748887442439,0.4945723,104460.0,104450.0,1.75762959]
[1748887442740,0.4943723,104460.0,104450.0,1.75762959]
[1748887442937,0.3032,104460.0,104450.0,1.75762959]
[1748887443142,0.203,104460.0,104450.0,1.85336559]
[1748887443339,0.2032,104460.0,104450.0,1.85336559]
[1748887443548,0.2032,104460.0,104450.0,3.21494458]
[1748887443739,0.00014373,104470.0,104460.0,0.1913723]
[1748887444046,0.19149773,104470.0,104460.0,1.38809028]
[1748887444844,0.19149773,104470.0,104460.0,1.73771129]
[1748887445539,0.19149773,104470.0,104460.0,1.18343129]
[1748887445748,0.28839773,104470.0,104460.0,1.74171129]
[1748887445944,0.28939773,104470.0,104460.0,1.19543129]
[1748887446142,0.28939773,104470.0,104460.0,1.75027129]
[1748887446540,0.28839773,104470.0,104460.0,1.76062129]
[1748887446746,0.39039773,104470.0,104460.0,1.76762129]
[1748887447750,0.39039773,104470.0,104460.0,1.1131223]
[1748887447951,0.39039773,104470.0,104460.0,1.5607623]
[1748887448252,0.39039773,104470.0,104460.0,1.76742129]
[1748887453660,0.39039773,104470.0,104460.0,1.21278129]
[1748887453955,0.39039773,104470.0,104460.0,1.76702129]
[1748887454157,0.39039773,104470.0,104460.0,1.31958129]
[1748887454358,0.39039773,104470.0,104460.0,1.76698129]
[1748887454559,0.39039773,104470.0,104460.0,1.5603223]
[1748887455954,0.39039773,104470.0,104460.0,1.1129223]
[1748887456149,0.39039773,104470.0,104460.0,1.5602423]
[1748887457457,0.39039773,104470.0,104460.0,1.5600423]
[1748887457657,0.39039773,104470.0,104460.0,1.5800423]
[1748887458156,0.39039773,104470.0,104460.0,1.78670129]
[1748887461358,0.39039773,104470.0,104460.0,1.81750129]
[1748887461749,0.39039773,104470.0,104460.0,1.45670129]
[1748887461954,0.39039773,104470.0,104460.0,1.81750129]
[1748887462353,0.39039773,104470.0,104460.0,1.00958129]
[1748887462557,0.39039773,104470.0,104460.0,1.81726129]
[1748887462751,0.39039773,104470.0,104460.0,1.78646129]
[1748887463554,0.39039773,104470.0,104460.0,1.0703223]
[1748887463857,0.59705672,104470.0,104460.0,1.5170022]
[1748887464060,0.39039773,104470.0,104460.0,1.5170022]
[1748887464956,0.38839773,104470.0,104460.0,1.5060022]
[1748887465354,0.38839773,104470.0,104460.0,1.60295542]
[1748887467754,0.38839773,104470.0,104460.0,1.5060022]
[1748887467955,0.38839773,104470.0,104460.0,1.04986208]
[1748887468165,0.38839773,104470.0,104460.0,1.41310208]
[1748887470056,0.38839773,104470.0,104460.0,1.65106107]
[1748887470270,0.38839773,104470.0,104460.0,1.68436107]
[1748887471658,0.38839773,104470.0,104460.0,1.74348474]
[1748887471858,0.38839773,104470.0,104460.0,1.74360553]
[1748887472059,0.38839773,104470.0,104460.0,1.53694654]
[1748887472562,0.38839773,104470.0,104460.0,0.89913434]
[1748887472763,0.38839773,104470.0,104460.0,1.47198654]
[1748887473069,0.38839773,104470.0,104460.0,1.41286287]
[1748887474768,0.38839773,104470.0,104460.0,1.47198654]
[1748887474965,0.38839773,104470.0,104460.0,0.36693434]
[1748887474966,0.59505672,104470.0,104460.0,0.36693434]
[1748887475269,0.96585672,104470.0,104460.0,0.81559532]
[1748887475761,0.96585672,104470.0,104460.0,0.81561858]
[1748887476269,1.16585672,104470.0,104460.0,0.81561858]
[1748887477073,1.16585672,104470.0,104460.0,0.62561858]
[1748887477264,0.95919773,104470.0,104460.0,0.66561858]
[1748887477465,0.94919773,104470.0,104460.0,0.85699088]
[1748887477664,0.94919773,104470.0,104460.0,0.69641858]
[1748887478266,0.94919773,104470.0,104460.0,0.88779088]
[1748887478870,0.94919773,104470.0,104460.0,0.69641858]
[1748887479670,0.94919773,104470.0,104460.0,0.69640887]
[1748887481578,1.15585672,104470.0,104460.0,0.21984887]
[1748887481779,1.15585672,104470.0,104460.0,0.66496887]
[1748887482181,1.15585672,104470.0,104460.0,0.21984887]
[1748887482377,1.15585672,104470.0,104460.0,0.66484887]
[1748887482879,0.94919773,104470.0,104460.0,0.66484887]
[1748887483083,0.94919773,104470.0,104460.0,0.85622117]
[1748887483281,0.94919773,104470.0,104460.0,0.66484887]
[1748887483577,0.94919773,104470.0,104460.0,0.66487322]
[1748887483978,0.94919773,104470.0,104460.0,0.11307322]
[1748887484168,1.16585672,104470.0,104460.0,0.55787322]
[1748887484573,1.16585672,104470.0,104460.0,0.51787322]
[1748887484981,1.29158072,104470.0,104460.0,0.07307322]
[1748887485189,1.89158072,104470.0,104460.0,0.07307322]
[1748887485378,1.89158072,104470.0,104460.0,0.46511]
[1748887485582,1.66158072,104470.0,104460.0,0.46511]
[1748887485973,1.66158072,104470.0,104460.0,0.02035]
[1748887486195,1.66158072,104470.0,104460.0,0.46515]
[1748887486591,1.67258072,104470.0,104460.0,0.46415]
[1748887486895,1.67958072,104470.0,104460.0,0.46115]
[1748887487495,1.58385672,104470.0,104460.0,0.46115]
[1748887487801,1.58585672,104470.0,104460.0,0.46115]
[1748887488091,1.58585672,104470.0,104460.0,0.01635]
[1748887488291,0.61839773,104470.0,104460.0,0.96914129]
[1748887488593,0.60839773,104470.0,104460.0,1.64538129]
[1748887488798,0.60859773,104470.0,104460.0,1.72847262]
[1748887488997,0.60859773,104470.0,104460.0,1.76167262]
[1748887489791,0.60859773,104470.0,104460.0,1.80646765]
[1748887489998,0.40859773,104470.0,104460.0,1.80646765]
[1748887490392,0.12134373,104470.0,104460.0,2.01376664]
[1748887490592,0.12114373,104470.0,104460.0,2.40798078]
[1748887490895,0.12134373,104470.0,104460.0,3.25369711]
[1748887491099,0.02134373,104470.0,104460.0,3.20100578]
[1748887491490,0.02114373,104470.0,104460.0,3.25367549]
[1748887491990,0.21269763,104470.0,104460.0,3.25367549]
[1748887492296,0.20269763,104470.0,104460.0,3.26467549]
[1748887492503,0.01134373,104470.0,104460.0,3.26467549]
[1748887493201,0.20269763,104470.0,104460.0,3.26467549]
[1748887493393,0.19369763,104470.0,104460.0,3.27367549]
[1748887494887,0.19369763,104470.0,104460.0,3.22100578]
[1748887495093,0.19369763,104470.0,104460.0,3.2737119]
[1748887495501,0.19369763,104470.0,104460.0,4.7737119]
[1748887496102,0.19369763,104470.0,104460.0,4.56705291]
[1748887497298,0.19369763,104470.0,104460.0,4.62662383]
[1748887498203,0.19369763,104470.0,104460.0,4.83328282]
[1748887498804,0.19369763,104470.0,104460.0,4.7805767]
[1748887499009,0.19369763,104470.0,104460.0,3.33325116]
[1748887500206,0.19369763,104470.0,104460.0,2.88785116]
[1748887500506,0.19369763,104470.0,104460.0,3.33225116]
[1748887501900,0.00234373,104470.0,104460.0,3.33225116]
[1748887502105,0.2391638,104490.0,104480.0,0.1913356]
[1748887502301,0.1913326,104490.0,104480.0,2.39782439]
[1748887502500,0.1913326,104490.0,104480.0,2.43012439]
[1748887502708,0.1913326,104490.0,104480.0,2.514961]
[1748887502902,0.1915326,104490.0,104480.0,2.514961]
[1748887503205,0.1995326,104490.0,104480.0,2.46328654]
[1748887503411,0.3612326,104490.0,104480.0,2.46328654]
[1748887504105,0.3612326,104490.0,104480.0,2.47763654]
[1748887504507,0.3612326,104490.0,104480.0,2.48717551]
[1748887505515,0.3702326,104490.0,104480.0,2.48817551]
[1748887505712,0.3702326,104490.0,104480.0,2.44354714]
[1748887505909,0.3702326,104490.0,104480.0,2.39090356]
[1748887507715,0.3702326,104490.0,104480.0,2.44360088]
[1748887507916,0.3702326,104490.0,104480.0,2.39090356]
[1748887508617,0.3702326,104490.0,104480.0,2.48822442]
[1748887511009,0.3702326,104490.0,104480.0,1.83728543]
[1748887511310,0.3702326,104490.0,104480.0,2.42320442]
[1748887511711,0.3702326,104490.0,104480.0,2.13200442]
[1748887512219,0.3702326,104490.0,104480.0,1.58280442]
[1748887512424,0.3702326,104490.0,104480.0,1.92474543]
[1748887512915,0.3702326,104490.0,104480.0,2.13140442]
[1748887513825,0.3702326,104490.0,104480.0,1.9247525]
[1748887514017,0.58689159,104490.0,104480.0,0.92499369]
[1748887514221,0.58689159,104490.0,104480.0,1.36879369]
[1748887514807,0.58689159,104490.0,104480.0,0.61765472]
[1748887517717,0.58689159,104490.0,104480.0,0.80899032]
[1748887518028,0.58689159,104490.0,104480.0,1.70661475]
[1748887518029,0.3702326,104490.0,104480.0,1.70661475]
[1748887518227,0.3700326,104490.0,104480.0,1.70661475]
[1748887518522,0.3702326,104490.0,104480.0,1.49995576]
[1748887520927,0.3702326,104490.0,104480.0,1.10862016]
[1748887521124,0.3702326,104490.0,104480.0,1.29995576]
[1748887521715,0.3702326,104490.0,104480.0,1.30006406]
[1748887521913,0.3702326,104490.0,104480.0,0.75146406]
[1748887522119,0.3702326,104490.0,104480.0,1.50676305]
[1748887522319,0.3702326,104490.0,104480.0,1.78896305]
[1748887522621,0.3702326,104490.0,104480.0,1.83372548]
[1748887522622,0.3700326,104490.0,104480.0,1.83372548]
[1748887522816,0.3702326,104490.0,104480.0,1.86672548]
[1748887523221,0.3700326,104490.0,104480.0,1.92622129]
[1748887523420,0.3702326,104490.0,104480.0,1.92622129]
[1748887525519,0.3702326,104490.0,104480.0,1.8284804]
[1748887525727,0.3702326,104490.0,104480.0,1.88143185]
[1748887526231,0.3702326,104490.0,104480.0,1.92616796]
[1748887526425,0.3702326,104490.0,104480.0,2.17263185]
[1748887526619,0.3702326,104490.0,104480.0,2.21736814]
[1748887527119,0.3702326,104490.0,104480.0,2.17263185]
[1748887527527,0.3702326,104490.0,104480.0,2.26187557]
[1748887537023,0.3702326,104490.0,104480.0,2.62267557]
[1748887537431,0.3702326,104490.0,104480.0,2.62267285]
[1748887541342,0.3702326,104490.0,104480.0,2.56972412]
[1748887541544,0.3702326,104490.0,104480.0,2.62271087]
[1748887542455,0.3389326,104490.0,104480.0,2.62271087]
[1748887543145,0.3085326,104490.0,104480.0,2.62271087]
[1748887545940,0.1172,104490.0,104480.0,2.62271087]
[1748887546145,0.117,104490.0,104480.0,2.76987405]
[1748887546340,0.1172,104490.0,104480.0,2.56321506]
[1748887546536,0.1172,104490.0,104480.0,2.47397134]
[1748887546739,0.0172,104490.0,104480.0,2.47397134]
[1748887547644,0.2085174,104490.0,104480.0,2.47397134]
[1748887548244,0.2400174,104490.0,104480.0,2.47397134]
[1748887549251,0.0487,104490.0,104480.0,2.47397134]
[1748887549648,0.2400174,104490.0,104480.0,2.47397134]
[1748887549956,0.2400174,104490.0,104480.0,1.75237134]
[1748887550151,0.2400174,104490.0,104480.0,2.59296297]
[1748887550652,0.2400174,104490.0,104480.0,2.59288297]
[1748887550856,0.2400174,104490.0,104480.0,1.83766398]
[1748887551155,0.2709174,104490.0,104480.0,2.4739137]
[1748887553050,0.2709174,104490.0,104480.0,2.47394647]
[1748887555554,0.2709174,104490.0,104480.0,3.37842647]
[1748887555754,0.2709174,104490.0,104480.0,3.08722647]
[1748887555955,0.2709174,104490.0,104480.0,3.05422647]
[1748887556846,0.2709174,104490.0,104480.0,3.00114459]
[1748887557049,0.2709174,104490.0,104480.0,3.05422215]
[1748887557651,0.2709174,104490.0,104480.0,3.08562215]
[1748887560053,0.2709174,104490.0,104480.0,3.08558215]
[1748887561655,0.2709174,104490.0,104480.0,2.87892316]
[1748887561849,0.2709174,104490.0,104480.0,3.08558215]
[1748887563759,0.08168,104490.0,104480.0,3.08558215]
[1748887564052,0.05078,104490.0,104480.0,3.29224114]
[1748887564260,0.05058,104490.0,104480.0,3.29224114]
[1748887564456,0.05078,104490.0,104480.0,3.29224114]
[1748887564758,0.04278,104490.0,104480.0,3.09747184]
[1748887564968,0.06858,104490.0,104480.0,3.10747184]
[1748887566660,0.06858,104490.0,104480.0,2.55899184]
[1748887566959,0.06858,104490.0,104480.0,3.10743184]
[1748887568059,0.06858,104490.0,104480.0,3.39863184]
[1748887568260,0.06858,104490.0,104480.0,3.19197285]
[1748887568462,0.06858,104490.0,104480.0,3.39863184]
[1748887568654,0.06858,104490.0,104480.0,3.34566459]
[1748887569460,0.06858,104490.0,104480.0,3.39864555]
[1748887570560,0.06858,104490.0,104480.0,3.34566459]
[1748887575056,0.03678,104490.0,104480.0,3.55232358]
[1748887575258,0.03658,104490.0,104480.0,3.55232358]
[1748887575458,0.03678,104490.0,104480.0,3.55232358]
[1748887575664,0.2410941,104520.0,104510.0,0.1912807]
[1748887575966,0.3635941,104520.0,104510.0,1.65705969]
[1748887576166,0.0645,104520.0,104510.0,1.65705969]
[1748887576366,0.0647,104520.0,104510.0,1.68955969]
[1748887576566,0.1645,104520.0,104510.0,3.18955969]
[1748887576861,0.1817,104520.0,104510.0,3.19155969]
[1748887577166,0.2132,104520.0,104510.0,3.22285969]
[1748887577369,0.2132,104520.0,104510.0,3.25555969]
[1748887578369,0.1132,104520.0,104510.0,3.25555969]
[1748887578571,0.1132,104520.0,104510.0,3.26990969]
[1748887579869,0.1132,104520.0,104510.0,3.56110969]
[1748887580874,0.1132,104520.0,104510.0,3.63652783]
[1748887581776,0.1132,104520.0,104510.0,2.13652783]
[1748887582075,0.1132,104520.0,104510.0,3.63652783]
[1748887583877,0.1132,104520.0,104510.0,3.68933688]
[1748887584076,0.1132,104520.0,104510.0,3.74883123]
[1748887584581,0.1132,104520.0,104510.0,3.74882947]
[1748887585671,0.1132,104520.0,104510.0,3.838071]
[1748887588677,0.1132,104520.0,104510.0,3.59859201]
[1748887588883,0.1132,104520.0,104510.0,3.805251]
[1748887589685,0.3042603,104520.0,104510.0,3.805251]
[1748887589890,0.3044603,104520.0,104510.0,3.805251]
[1748887590685,0.3044603,104520.0,104510.0,4.166051]
[1748887592591,0.3044603,104520.0,104510.0,4.16604379]
[1748887593200,0.3044603,104520.0,104510.0,3.9593848]
[1748887593384,0.3044603,104520.0,104510.0,4.16604379]
[1748887595593,0.3044603,104520.0,104510.0,4.10654944]
[1748887595986,0.3044603,104520.0,104510.0,4.04266944]
[1748887596381,0.3044603,104520.0,104510.0,4.04269084]
[1748887596892,0.3044603,104520.0,104510.0,3.49457084]
[1748887597089,0.52111929,104520.0,104510.0,0.99055115]
[1748887597387,0.52111929,104520.0,104510.0,0.84736589]
[1748887597388,0.97759929,104520.0,104510.0,0.84736589]
[1748887597587,0.97759929,104520.0,104510.0,0.80270962]
[1748887597788,0.97759929,104520.0,104510.0,0.35930962]
[1748887597990,1.07759929,104520.0,104510.0,0.80270962]
[1748887598290,1.13759929,104520.0,104510.0,0.80270962]
[1748887598595,1.04191929,104520.0,104510.0,0.80270962]
[1748887600192,1.04191929,104520.0,104510.0,0.69241523]
[1748887600691,1.13759929,104520.0,104510.0,0.14429523]
[1748887600899,1.13759929,104520.0,104510.0,0.69241523]
[1748887601398,1.07759929,104520.0,104510.0,0.69241523]
[1748887601587,1.07759929,104520.0,104510.0,0.24901523]
[1748887601787,1.07759929,104520.0,104510.0,0.69241523]
[1748887601996,1.27759929,104520.0,104510.0,0.69241523]
[1748887602486,1.27759929,104520.0,104510.0,0.14429523]
[1748887602693,1.27759929,104520.0,104510.0,0.58769523]
[1748887603598,1.27759929,104520.0,104510.0,0.62769523]
[1748887604099,1.41759929,104520.0,104510.0,0.53612092]
[1748887604394,1.71759929,104520.0,104510.0,0.4434]
[1748887606299,1.71759929,104520.0,104510.0,0.45775]
[1748887612503,1.62191929,104520.0,104510.0,0.45775]
[1748887612702,1.48191929,104520.0,104510.0,0.53775]
[1748887613607,1.48191929,104520.0,104510.0,0.09435]
[1748887613902,0.1912779,104510.0,104500.0,0.00014373]
[1748887614105,1.16083689,104510.0,104500.0,3e-08]
[1748887614404,1.44524699,104510.0,104480.0,0.18102467]
[1748887614600,0.39797349,104490.0,104480.0,0.95442467]
[1748887614799,0.39797349,104490.0,104480.0,0.95404718]
[1748887615002,0.42967349,104490.0,104480.0,0.95404718]
[1748887615407,0.46007349,104490.0,104480.0,0.95404718]
[1748887615701,0.47007349,104490.0,104480.0,0.95404718]
[1748887615908,0.47007349,104490.0,104480.0,0.71404718]
[1748887616206,0.47607349,104490.0,104480.0,0.76741982]
[1748887616509,0.57607349,104490.0,104480.0,0.76841982]
[1748887616696,0.57607349,104490.0,104480.0,0.15872264]
[1748887616901,0.57607349,104490.0,104470.0,0.1069296]
[1748887616902,0.1913329,104480.0,104470.0,0.1069296]
[1748887617105,0.86149189,104480.0,104470.0,0.8703296]
[1748887617292,0.86149189,104480.0,104470.0,0.3222496]
[1748887617601,0.86149189,104480.0,104470.0,0.7656496]
[1748887617803,0.86149189,104480.0,104470.0,0.5956496]
[1748887617999,0.86249189,104480.0,104470.0,0.5956496]
[1748887618204,1.06249189,104480.0,104470.0,0.5956496]
[1748887618400,1.16249189,104480.0,104470.0,0.5956496]
[1748887618610,1.16349189,104480.0,104470.0,0.5956496]
[1748887619709,1.16349189,104480.0,104470.0,0.5986496]
[1748887620208,1.16949189,104480.0,104470.0,0.1532496]
[1748887620403,1.16949189,104480.0,104470.0,0.5966896]
[1748887621305,0.5920329,104480.0,104470.0,0.84469979]
[1748887621513,0.5970329,104480.0,104470.0,1.60929979]
[1748887621799,0.5352329,104480.0,104470.0,1.60929979]
[1748887622005,0.5045329,104480.0,104470.0,1.60929979]
[1748887622310,0.5043329,104480.0,104470.0,1.60929979]
[1748887622506,0.5045329,104480.0,104470.0,1.60929979]
[1748887623697,0.5043329,104480.0,104470.0,1.60929979]
[1748887623899,0.5045329,104480.0,104470.0,1.60929979]
[1748887624104,0.5043329,104480.0,104470.0,1.60929979]
[1748887624405,0.5045329,104480.0,104470.0,1.65388216]
[1748887624608,0.5043329,104480.0,104470.0,1.65388216]
[1748887624806,0.3132,104480.0,104470.0,1.65388216]
[1748887625111,0.4045329,104480.0,104470.0,1.65388216]
[1748887626604,0.4045329,104480.0,104470.0,1.71340322]
[1748887627711,0.4045329,104480.0,104470.0,1.75806238]
[1748887628913,0.4045329,104480.0,104470.0,1.81019401]
[1748887629315,0.4045329,104480.0,104470.0,2.17099401]
[1748887629709,0.2132,104480.0,104470.0,2.17099401]
[1748887630208,0.2132,104480.0,104470.0,2.11147295]
[1748887630416,0.2132,104480.0,104470.0,2.66384794]
[1748887630613,0.33492913,104500.0,104490.0,0.60463258]
[1748887630811,0.33455164,104500.0,104490.0,1.82355258]
[1748887631011,0.33455164,104500.0,104490.0,2.0121201]
[1748887631314,0.33455164,104500.0,104490.0,2.16626111]
[1748887631712,0.34355164,104500.0,104490.0,2.16726111]
[1748887632016,0.44355164,104500.0,104490.0,2.16726111]
[1748887632315,0.45055164,104500.0,104490.0,2.16826111]
[1748887633816,0.45055164,104500.0,104490.0,2.16826097]
[1748887634717,0.45055164,104500.0,104490.0,2.07149359]
[1748887634910,0.45055164,104500.0,104490.0,2.16825177]
[1748887635809,0.48135164,104500.0,104490.0,2.16825177]
[1748887636109,0.51345164,104500.0,104490.0,2.16825177]
[1748887636821,0.51345164,104500.0,104490.0,1.62013177]
[1748887637021,0.51345164,104500.0,104490.0,1.96143278]
[1748887638513,0.51345164,104500.0,104490.0,2.16809177]
[1748887638713,0.51345164,104500.0,104490.0,2.16805713]
[1748887639105,0.38589724,104500.0,104490.0,2.16805713]
[1748887640017,0.38589724,104500.0,104490.0,1.38333814]
[1748887640223,0.41769724,104500.0,104490.0,1.93129814]
[1748887640908,0.98515623,104500.0,104490.0,0.51332354]
[1748887641106,0.99515623,104500.0,104490.0,0.21870537]
[1748887641307,0.99515623,104500.0,104490.0,0.54996]
[1748887641615,1.92085623,104500.0,104490.0,0.002]
[1748887642513,2.10085623,104500.0,104490.0,0.002]
[1748887644320,1.85085623,104500.0,104490.0,0.002]
[1748887644527,2.10085623,104500.0,104490.0,0.002]
[1748887646324,0.1913146,104490.0,104480.0,0.1046]
[1748887646628,0.191333,104480.0,104470.0,0.46727211]
[1748887646826,0.46219199,104480.0,104470.0,1.20275871]
[1748887647219,0.46219199,104480.0,104470.0,0.75939871]
[1748887647410,0.46219199,104480.0,104470.0,1.20275871]
[1748887647926,0.56219199,104480.0,104470.0,1.20275871]
[1748887648121,0.97299199,104480.0,104470.0,0.84195871]
[1748887648323,0.95199199,104480.0,104470.0,0.24387211]
[1748887648530,0.95199199,104480.0,104470.0,0.84396737]
[1748887648827,0.95199199,104480.0,104470.0,0.79183211]
[1748887650728,0.745333,104480.0,104470.0,0.79183211]
[1748887650929,0.95199199,104480.0,104470.0,0.79183211]
[1748887651125,0.59139199,104480.0,104470.0,0.79183211]
[1748887651339,0.59139199,104480.0,104470.0,0.84397064]
[1748887652523,0.59139199,104480.0,104470.0,0.79183211]
[1748887655323,0.59139199,104480.0,104470.0,0.34847211]
[1748887655523,0.59139199,104480.0,104470.0,0.57187211]
[1748887656618,0.384533,104480.0,104470.0,0.76187211]
[1748887656813,0.384733,104480.0,104470.0,0.76187211]
[1748887657034,0.384733,104480.0,104470.0,0.79347211]
[1748887658430,0.384733,104480.0,104470.0,0.82547211]
[1748887658740,0.384733,104480.0,104470.0,1.01682341]
[1748887659919,0.384733,104480.0,104470.0,0.82547211]
[1748887660530,0.364733,104480.0,104470.0,0.82547211]
[1748887660826,0.364733,104480.0,104470.0,0.38207211]
[1748887661031,0.364733,104480.0,104470.0,0.82547211]
[1748887662135,0.58139199,104480.0,104470.0,0.61547211]
[1748887662438,0.57839199,104480.0,104470.0,0.63147211]
[1748887663334,0.57439199,104480.0,104470.0,0.63647211]
[1748887663823,0.57439199,104480.0,104470.0,0.16107211]
[1748887664023,0.57439199,104480.0,104470.0,0.56283211]
[1748887665326,0.57439199,104480.0,104470.0,0.59383211]
[1748887666132,0.57439199,104480.0,104470.0,0.56283211]
[1748887667538,0.57439199,104480.0,104470.0,0.61504776]
[1748887668943,0.62439199,104480.0,104470.0,0.61504776]
[1748887669838,0.57439199,104480.0,104470.0,0.61504776]
[1748887670338,0.367733,104480.0,104470.0,0.61504776]
[1748887670531,0.57439199,104480.0,104470.0,0.64514776]
[1748887670732,0.57439199,104480.0,104470.0,0.67614776]
[1748887671532,0.357733,104480.0,104470.0,1.58495785]
[1748887671737,0.293333,104480.0,104470.0,1.61805785]
[1748887672040,0.293533,104480.0,104470.0,1.89273647]
[1748887672542,0.293533,104480.0,104470.0,1.95225099]
[1748887673137,0.293533,104480.0,104470.0,1.90757237]
[1748887673333,0.293533,104480.0,104470.0,1.85535672]
[1748887673537,0.293533,104480.0,104470.0,1.90767058]
[1748887674648,0.293333,104480.0,104470.0,1.90767058]
[1748887674943,0.293533,104480.0,104470.0,1.90767058]
[1748887675544,0.293533,104480.0,104470.0,1.99694237]
[1748887677141,0.293533,104480.0,104470.0,1.99687537]
[1748887677540,0.293533,104480.0,104470.0,1.90760358]
[1748887679640,0.293533,104480.0,104470.0,1.90752358]
[1748887680344,0.293533,104480.0,104470.0,2.19872358]
[1748887680845,0.293533,104480.0,104470.0,2.19868508]
[1748887683443,0.1022,104480.0,104470.0,1.74652108]
[1748887683640,0.102,104480.0,104470.0,2.63363287]
[1748887683835,0.0022,104480.0,104470.0,2.57411835]
[1748887684140,0.002,104480.0,104470.0,2.32411835]
[1748887684341,0.0022,104480.0,104470.0,1.88087281]
[1748887684544,0.0022,104480.0,104470.0,2.27190445]
[1748887684932,0.0022,104480.0,104470.0,2.32371046]
[1748887685642,0.0022,104480.0,104470.0,2.68451046]
[1748887685945,0.1935329,104480.0,104470.0,2.47785147]
[1748887686147,0.0022,104480.0,104470.0,2.68451046]
[1748887688438,0.0022,104480.0,104470.0,2.68447505]
[1748887690550,0.0022,104480.0,104470.0,2.58875905]
[1748887691146,0.0022,104480.0,104470.0,2.38210006]
[1748887691346,0.0022,104480.0,104470.0,2.58875905]
[1748887692153,0.002,104480.0,104470.0,2.68447505]
[1748887692354,0.0022,104480.0,104470.0,2.68447505]
[1748887693946,0.0022,104480.0,104470.0,2.63270445]
[1748887695855,0.0022,104480.0,104470.0,2.5433982]
[1748887696748,0.2505958,104500.0,104490.0,0.60463208]
[1748887696955,0.3673536,104510.0,104500.0,0.1912958]
[1748887697155,0.3980536,104510.0,104500.0,1.15281726]
[1748887697356,0.4980536,104510.0,104500.0,1.22872398]
[1748887697654,0.4982536,104510.0,104500.0,1.22872398]
[1748887698653,0.4982536,104510.0,104500.0,1.19742398]
[1748887698955,0.4982536,104510.0,104500.0,1.10105479]
[1748887699149,0.4982536,104510.0,104500.0,1.22778882]
[1748887699546,0.4584303,104510.0,104500.0,1.28827209]
[1748887699945,0.4584303,104510.0,104500.0,1.28727209]
[1748887700152,0.4840303,104510.0,104500.0,1.30227209]
[1748887700452,0.4910303,104510.0,104500.0,1.30327209]
[1748887701254,0.4860303,104510.0,104500.0,1.31427209]
[1748887702259,0.4860303,104510.0,104500.0,1.28387209]
[1748887703053,0.4860303,104510.0,104500.0,1.18753806]
[1748887703250,0.4860303,104510.0,104500.0,1.28390912]
[1748887703865,0.4382078,104510.0,104500.0,1.28390912]
[1748887704065,0.4380078,104510.0,104500.0,1.28390912]
[1748887704266,0.1989,104510.0,104500.0,1.28390912]
[1748887704472,0.1991,104510.0,104500.0,1.28390912]
[1748887704670,0.3901776,104510.0,104500.0,1.31450912]
[1748887704863,0.3903776,104510.0,104500.0,1.31450912]
[1748887705768,0.3903776,104510.0,104500.0,1.75758912]
[1748887706868,0.3903776,104510.0,104500.0,2.04878912]
[1748887707073,0.3903776,104510.0,104500.0,2.04882502]
[1748887707469,0.3903776,104510.0,104500.0,1.98934175]
[1748887708372,0.1991,104510.0,104500.0,1.98934175]
[1748887708671,0.3903776,104510.0,104500.0,1.98934175]
[1748887709582,0.3903776,104510.0,104500.0,1.54626175]
[1748887709769,0.3903776,104510.0,104500.0,1.98930175]
[1748887710371,0.1991,104510.0,104500.0,1.98930175]
[1748887710565,0.1991,104510.0,104500.0,2.04878502]
[1748887711178,0.1989,104510.0,104500.0,2.09337592]
[1748887711362,0.1991,104510.0,104500.0,2.03389265]
[1748887711765,0.0991,104510.0,104500.0,2.03389265]
[1748887712771,0.0991,104510.0,104500.0,3.53389265]
[1748887712975,0.0991,104510.0,104500.0,3.32723366]
[1748887713173,0.0991,104510.0,104500.0,3.53389265]
[1748887714576,0.0991,104510.0,104500.0,3.4821197]
[1748887714767,0.0991,104510.0,104500.0,3.53409068]
[1748887716169,0.0991,104510.0,104500.0,3.09105068]
[1748887716373,0.2903776,104510.0,104500.0,2.33899589]
[1748887716574,0.49703659,104510.0,104500.0,0.99593887]
[1748887716877,0.2903776,104510.0,104500.0,1.17235232]
[1748887717478,0.2903776,104510.0,104500.0,1.23192021]
[1748887717980,0.3903776,104510.0,104500.0,1.23192021]
[1748887718181,0.3903776,104510.0,104500.0,0.78896021]
[1748887718381,0.3903776,104510.0,104500.0,1.28395069]
[1748887718781,0.3903776,104510.0,104500.0,1.23197971]
[1748887721483,0.3903776,104510.0,104500.0,0.78901971]
[1748887721666,0.3903776,104510.0,104500.0,1.23197971]
[1748887722177,0.1991,104510.0,104500.0,1.7994387]
[1748887722383,0.1991,104510.0,104500.0,1.79948894]